[Event "Championnat d'Europe de Blitz"]
[Date "2024.12.09"]
[White "Boyer, Mahel"]
[Black "Baidetskyi, Valentin"]
[WhiteElo "2526"]
[BlackElo "2519"]
[Round "12.13"]
[Result "0-1"]
[TimeControl "180+2"]

1. Nf3 {[%emt 00:00:01] [%clk 00:03:03]} d6 {[%emt 00:00:03] [%clk 00:03:01]} 2.
d4 {[%emt 00:00:02] [%clk 00:03:03]} Nf6 {[%emt 00:00:01] [%clk 00:03:02]} 3. c4
{[%emt 00:00:03] [%clk 00:03:02]} g6 {[%emt 00:00:01] [%clk 00:03:03]} 4. Nc3
{[%emt 00:00:04] [%clk 00:03:00]} Bg7 {[%emt 00:00:01] [%clk 00:03:04]} 5. e3
{[%emt 00:00:02] [%clk 00:03:01]} O-O {[%emt 00:00:17] [%clk 00:02:49]} 6. h3
{[%clk 00:03:02]} Re8 {[%emt 00:00:34] [%clk 00:02:17]} 7. Be2 {[%emt 00:00:02]
[%clk 00:03:02]} Bd7 {[%emt 00:00:02] [%clk 00:02:18]} 8. O-O {[%emt 00:00:18]
[%clk 00:02:45]} e5 {[%emt 00:00:01] [%clk 00:02:19]} 9. dxe5 {[%emt 00:00:49]
[%clk 00:01:58]} dxe5 {[%clk 00:02:20]} 10. e4 {[%clk 00:01:59]} Nc6 {[%emt
00:00:15] [%clk 00:02:07]} 11. Be3 {[%emt 00:00:07] [%clk 00:01:54]} Be6 {[%emt
00:00:08] [%clk 00:02:01]} 12. Ng5 {[%emt 00:00:06] [%clk 00:01:50]} Bd7 {[%emt
00:00:14] [%clk 00:01:50]} 13. Nf3 {[%emt 00:00:33] [%clk 00:01:19]} Be6 {[%emt
00:00:03] [%clk 00:01:49]} 14. Ng5 {[%emt 00:00:02] [%clk 00:01:19]} Nd4 {[%emt
00:00:03] [%clk 00:01:47]} 15. Nxe6 {[%emt 00:00:02] [%clk 00:01:19]} Rxe6
{[%emt 00:00:01] [%clk 00:01:47]} 16. c5 {[%emt 00:00:05] [%clk 00:01:16]} Nd7
{[%emt 00:00:12] [%clk 00:01:38]} 17. Bc4 {[%emt 00:00:06] [%clk 00:01:12]} Re8
{[%clk 00:01:38]} 18. b4 {[%emt 00:00:02] [%clk 00:01:12]} a5 {[%emt 00:00:02]
[%clk 00:01:38]} 19. a3 {[%emt 00:00:08] [%clk 00:01:07]} c6 {[%emt 00:00:16]
[%clk 00:01:23]} 20. Qd3 {[%emt 00:00:04] [%clk 00:01:05]} Qh4 {[%emt 00:00:17]
[%clk 00:01:09]} 21. Kh2 {[%emt 00:00:05] [%clk 00:01:01]} Rad8 {[%emt 00:00:06]
[%clk 00:01:05]} 22. g3 {[%clk 00:01:02]} Qh5 {[%emt 00:00:07] [%clk 00:01:00]}
23. Qd1 {[%emt 00:00:10] [%clk 00:00:55]} Qxd1 {[%emt 00:00:24] [%clk 00:00:38]}
24. Raxd1 {[%clk 00:00:56]} axb4 {[%emt 00:00:04] [%clk 00:00:35]} 25. axb4
{[%emt 00:00:03]} b5 {[%emt 00:00:15] [%clk 00:00:20]} 26. Bd3 {[%emt 00:00:16]
[%clk 00:00:43]} Nf8 {[%emt 00:00:07] [%clk 00:00:15]} 27. Ne2 {[%emt 00:00:09]
[%clk 00:00:37]} Nfe6 {[%emt 00:00:04] [%clk 00:00:13]} 28. Nxd4 {[%emt
00:00:01] [%clk 00:00:37]} Nxd4 {[%emt 00:00:02] [%clk 00:00:14]} 29. Kg2 {[%emt
00:00:03] [%clk 00:00:36]} Re7 {[%emt 00:00:10] [%clk 00:00:06]} 30. Ra1 {[%emt
00:00:03] [%clk 00:00:34]} Nb3 {[%clk 00:00:07]} 31. Ra3 {[%emt 00:00:01] [%clk
00:00:35]} Nd4 {[%emt 00:00:06] [%clk 00:00:03]} 32. Ra6 {[%emt 00:00:05] [%clk
00:00:33]} Red7 {[%emt 00:00:02] [%clk 00:00:03]} 33. Bb1 {[%emt 00:00:04] [%clk
00:00:30]} Rc8 {[%clk 00:00:05]} 34. Ba2 {[%clk 00:00:31]} h5 {[%emt 00:00:02]
[%clk 00:00:05]} 35. Rd1 {[%emt 00:00:01] [%clk 00:00:32]} Kh7 {[%emt 00:00:02]
[%clk 00:00:04]} 36. f4 {[%emt 00:00:03] [%clk 00:00:31]} Rcd8 {[%emt 00:00:04]
[%clk 00:00:03]} 37. Bf2 {[%emt 00:00:14] [%clk 00:00:19]} Nc2 {[%emt 00:00:02]
[%clk 00:00:03]} 38. Rxd7 {[%emt 00:00:08] [%clk 00:00:12]} Rxd7 {[%clk
00:00:04]} 39. Bb3 {[%emt 00:00:07] [%clk 00:00:07]} Nxb4 {[%emt 00:00:01] [%clk
00:00:05]} 40. Rb6 {[%clk 00:00:09]} Rd2 {[%clk 00:00:06]} 41. Kf1 {[%emt
00:00:04] [%clk 00:00:06]} exf4 {[%emt 00:00:02] [%clk 00:00:07]} 42. gxf4
{[%emt 00:00:01] [%clk 00:00:07]} Bd4 {[%emt 00:00:03] [%clk 00:00:06]} 43. Bxd4
{[%emt 00:00:02] [%clk 00:00:07]} Rxd4 {[%emt 00:00:02]} 44. Rb7 {[%emt
00:00:03] [%clk 00:00:05]} Rxe4 {[%emt 00:00:01] [%clk 00:00:07]} 45. Rxf7+
{[%emt 00:00:01] [%clk 00:00:06]} Kh6 {[%emt 00:00:01] [%clk 00:00:09]} 46. Kf2
{[%clk 00:00:07]} Nd3+ {[%emt 00:00:02] [%clk 00:00:08]} 47. Kf3 {[%clk
00:00:08]} Nxc5 {[%emt 00:00:01] [%clk 00:00:09]} 48. Bc2 {[%emt 00:00:02] [%clk
00:00:07]} Rc4 {[%emt 00:00:02] [%clk 00:00:10]} 49. Bb1 {[%clk 00:00:08]} Rc1
{[%emt 00:00:02] [%clk 00:00:10]} 50. Ba2 {[%emt 00:00:03] [%clk 00:00:07]} Rc3+
{[%clk 00:00:11]} 51. Ke2 {[%emt 00:00:06] [%clk 00:00:03]} Rc2+ {[%emt
00:00:01] [%clk 00:00:12]} 52. Ke3 {[%clk 00:00:05]} Rxa2 {[%clk 00:00:14]} 53.
Kd4 {[%clk 00:00:06]} Ne6+ {[%emt 00:00:03] [%clk 00:00:12]} 54. Ke5 {[%clk
00:00:08]} Re2+ {[%emt 00:00:04] [%clk 00:00:11]} 55. Kf6 {[%clk 00:00:09]} Nxf4
{[%emt 00:00:03] [%clk 00:00:10]} 56. Rf8 {[%emt 00:00:02] [%clk 00:00:10]} Re6+
{[%clk 00:00:11]} 57. Kf7 {[%clk 00:00:11]} Kg5 {[%emt 00:00:01] [%clk
00:00:12]} 0-1

[Site "Europe Echecs"]

[Event "Championnat d'Europe de Blitz"]
[Date "2024.12.09"]
[White "Papasimakopoulos, Alexandros"]
[Black "Livaic, Leon"]
[WhiteElo "2379"]
[BlackElo "2560"]
[Round "12.14"]
[Result "0-1"]
[TimeControl "180+2"]

1. d4 {[%emt 00:00:03] [%clk 00:03:03]} d6 {[%clk 00:03:03]} 2. Nf3 {[%clk
00:03:04]} Nf6 {[%emt 00:00:01] [%clk 00:03:04]} 3. c4 {[%emt 00:00:01] [%clk
00:03:05]} g6 {[%emt 00:00:02] [%clk 00:03:03]} 4. Nc3 {[%emt 00:00:01] [%clk
00:03:06]} Bg7 {[%clk 00:03:04]} 5. Bg5 {[%emt 00:00:01] [%clk 00:03:06]} Bf5
{[%emt 00:00:02] [%clk 00:03:05]} 6. e3 {[%emt 00:00:02] [%clk 00:03:07]} Ne4
{[%emt 00:00:02] [%clk 00:03:04]} 7. Bh4 {[%emt 00:00:04] [%clk 00:03:05]} Nxc3
{[%emt 00:00:03] [%clk 00:03:04]} 8. bxc3 {[%clk 00:03:06]} O-O {[%emt 00:00:08]
[%clk 00:02:58]} 9. Bd3 {[%clk 00:03:07]} Bxd3 {[%emt 00:00:04] [%clk 00:02:56]}
10. Qxd3 {[%emt 00:00:01] [%clk 00:03:08]} Nc6 {[%emt 00:00:10] [%clk 00:02:48]}
11. O-O {[%emt 00:00:03] [%clk 00:03:07]} Qd7 {[%emt 00:00:04] [%clk 00:02:45]}
12. Rab1 {[%emt 00:00:04] [%clk 00:03:06]} b6 {[%emt 00:00:02] [%clk 00:02:44]}
13. e4 {[%emt 00:00:20] [%clk 00:02:47]} Rae8 {[%emt 00:00:12] [%clk 00:02:35]}
14. d5 {[%emt 00:00:30] [%clk 00:02:20]} Na5 {[%emt 00:00:06] [%clk 00:02:31]}
15. Nd4 {[%emt 00:00:07] [%clk 00:02:14]} e5 {[%emt 00:00:13] [%clk 00:02:21]}
16. Nb3 {[%emt 00:00:05] [%clk 00:02:11]} Nb7 {[%emt 00:00:11] [%clk 00:02:12]}
17. f4 {[%emt 00:00:07] [%clk 00:02:06]} f5 {[%emt 00:00:16] [%clk 00:01:57]}
18. exf5 {[%emt 00:00:20] [%clk 00:01:48]} Qxf5 {[%emt 00:00:11] [%clk
00:01:48]} 19. Qxf5 {[%emt 00:00:08] [%clk 00:01:42]} Rxf5 {[%emt 00:00:01]
[%clk 00:01:49]} 20. fxe5 {[%emt 00:00:12] [%clk 00:01:33]} Rxf1+ {[%emt
00:00:31] [%clk 00:01:20]} 21. Rxf1 {[%emt 00:00:03] [%clk 00:01:32]} Bxe5
{[%emt 00:00:02] [%clk 00:01:20]} 22. Bf6 {[%emt 00:00:07] [%clk 00:01:26]} Bxf6
{[%emt 00:00:25] [%clk 00:00:57]} 23. Rxf6 {[%clk 00:01:27]} Kg7 {[%emt
00:00:07] [%clk 00:00:53]} 24. Rf1 {[%emt 00:00:09] [%clk 00:01:19]} a6 {[%emt
00:00:09] [%clk 00:00:47]} 25. Rf3 {[%emt 00:00:23] [%clk 00:00:57]} Re4 {[%emt
00:00:03] [%clk 00:00:47]} 26. Nd4 {[%emt 00:00:02] [%clk 00:00:57]} Nc5 {[%emt
00:00:02] [%clk 00:00:48]} 27. Kf2 {[%emt 00:00:02] [%clk 00:00:56]} h5 {[%emt
00:00:04] [%clk 00:00:46]} 28. g3 {[%emt 00:00:10] [%clk 00:00:48]} Re7 {[%emt
00:00:06] [%clk 00:00:41]} 29. h4 {[%emt 00:00:02] [%clk 00:00:48]} Ne4+ {[%emt
00:00:04] [%clk 00:00:40]} 30. Kg2 {[%emt 00:00:07] [%clk 00:00:41]} Nc5 {[%emt
00:00:05] [%clk 00:00:38]} 31. Kf2 {[%emt 00:00:18] [%clk 00:00:25]} Re8 {[%emt
00:00:03] [%clk 00:00:37]} 32. Kf1 {[%emt 00:00:06] [%clk 00:00:21]} Re7 {[%emt
00:00:13] [%clk 00:00:26]} 33. Kf2 {[%emt 00:00:02] [%clk 00:00:22]} Rf7 {[%emt
00:00:01] [%clk 00:00:27]} 34. Rxf7+ {[%emt 00:00:01] [%clk 00:00:22]} Kxf7
{[%clk 00:00:28]} 35. Kf3 {[%emt 00:00:06] [%clk 00:00:18]} Kf6 {[%emt 00:00:01]
[%clk 00:00:30]} 36. Kf4 {[%emt 00:00:04] [%clk 00:00:16]} Nd3+ {[%emt 00:00:02]
[%clk 00:00:30]} 37. Ke3 {[%emt 00:00:02] [%clk 00:00:15]} Ne5 {[%emt 00:00:05]
[%clk 00:00:27]} 38. Ne6 {[%emt 00:00:06]} c5 {[%clk 00:00:24]} 39. Nc7 {[%emt
00:00:05] [%clk 00:00:13]} Nxc4+ {[%emt 00:00:05] [%clk 00:00:21]} 40. Kd3
{[%clk 00:00:14]} Ne5+ {[%clk 00:00:22]} 41. Ke4 {[%clk 00:00:15]} a5 {[%emt
00:00:02] [%clk 00:00:22]} 42. a4 {[%emt 00:00:08] [%clk 00:00:10]} Nc4 {[%emt
00:00:07] [%clk 00:00:17]} 43. Na8 {[%emt 00:00:05] [%clk 00:00:07]} Ke7 {[%emt
00:00:05] [%clk 00:00:13]} 44. Kf4 {[%emt 00:00:01] [%clk 00:00:09]} Kd7 {[%emt
00:00:06] [%clk 00:00:09]} 45. g4 {[%emt 00:00:02] [%clk 00:00:09]} hxg4 {[%clk
00:00:10]} 46. Kxg4 {[%clk 00:00:10]} b5 {[%clk 00:00:12]} 47. axb5 {[%emt
00:00:09] [%clk 00:00:04]} a4 {[%clk 00:00:13]} 48. b6 {[%emt 00:00:01] [%clk
00:00:04]} Kc8 {[%emt 00:00:06] [%clk 00:00:09]} 49. Nc7 {[%emt 00:00:02]} a3
{[%clk 00:00:10]} 50. Nb5 {[%emt 00:00:04] [%clk 00:00:03]} a2 {[%clk 00:00:11]}
51. Na7+ {[%emt 00:00:01] [%clk 00:00:04]} Kb7 {[%emt 00:00:01] [%clk 00:00:12]}
0-1

[Site "Europe Echecs"]

[Event "Championnat d'Europe de Blitz"]
[Date "2024.12.09"]
[White "Beerdsen, Thomas"]
[Black "Horvath, Dominik"]
[WhiteElo "2502"]
[BlackElo "2542"]
[Round "12.15"]
[Result "1-0"]
[TimeControl "180+2"]

1. e4 {[%emt 00:03:47] [%clk 00:03:03]} d5 {[%clk 00:03:04]} 2. exd5 {[%clk
00:03:04]} Qxd5 {[%clk 00:03:05]} 3. Nc3 {[%clk 00:03:05]} Qa5 {[%clk 00:03:07]}
4. b4 {[%clk 00:03:07]} Qxb4 {[%clk 00:03:08]} 5. Rb1 {[%clk 00:03:09]} Qd6
{[%emt 00:00:02] [%clk 00:03:08]} 6. Nf3 {[%emt 00:00:01] [%clk 00:03:10]} a6
{[%clk 00:03:09]} 7. d4 {[%emt 00:00:01] [%clk 00:03:10]} Nf6 {[%clk 00:03:10]}
8. Bc4 {[%emt 00:00:01] [%clk 00:03:11]} b5 {[%emt 00:00:03] [%clk 00:03:10]} 9.
Bb3 {[%emt 00:00:05] [%clk 00:03:08]} Bb7 {[%emt 00:00:07] [%clk 00:03:05]} 10.
O-O {[%emt 00:00:06] [%clk 00:03:04]} e6 {[%emt 00:00:01] [%clk 00:03:06]} 11.
Ne5 {[%emt 00:00:06] [%clk 00:03:00]} Be7 {[%emt 00:00:10] [%clk 00:02:57]} 12.
Bf4 {[%emt 00:00:02] [%clk 00:03:00]} Qd8 {[%emt 00:00:01] [%clk 00:02:58]} 13.
Nxf7 {[%emt 00:00:15] [%clk 00:02:46]} Kxf7 {[%emt 00:00:07] [%clk 00:02:54]}
14. Re1 {[%emt 00:00:01] [%clk 00:02:47]} Bd5 {[%emt 00:00:08] [%clk 00:02:47]}
15. Nxd5 {[%emt 00:00:03] [%clk 00:02:47]} exd5 {[%emt 00:00:36]} 16. g4 {[%clk
00:02:25]} h6 {[%emt 00:00:33] [%clk 00:02:06]} 17. h4 {[%emt 00:00:14] [%clk
00:02:13]} Bd6 {[%emt 00:00:01] [%clk 00:02:07]} 18. Be5 {[%emt 00:00:18] [%clk
00:01:57]} c6 {[%emt 00:00:25] [%clk 00:01:44]} 19. g5 {[%emt 00:00:02] [%clk
00:01:57]} hxg5 {[%emt 00:00:01] [%clk 00:01:44]} 20. hxg5 {[%emt 00:00:02]
[%clk 00:01:58]} Qd7 {[%emt 00:00:17] [%clk 00:01:29]} 21. Qf3 {[%emt 00:00:29]
[%clk 00:01:31]} Bxe5 {[%emt 00:00:02] [%clk 00:01:30]} 22. Rxe5 {[%emt
00:00:15] [%clk 00:01:18]} Qg4+ {[%clk 00:01:31]} 23. Qxg4 {[%emt 00:00:01]
[%clk 00:01:19]} Nxg4 {[%clk 00:01:32]} 24. Rxd5 {[%emt 00:00:01] [%clk
00:01:20]} cxd5 {[%emt 00:00:06] [%clk 00:01:28]} 25. Bxd5+ {[%emt 00:00:02]
[%clk 00:01:21]} Kg6 {[%clk 00:01:29]} 26. Bxa8 {[%emt 00:00:02] [%clk
00:01:21]} Nd7 {[%emt 00:00:04] [%clk 00:01:28]} 27. Bb7 {[%emt 00:00:03] [%clk
00:01:19]} Nb8 {[%emt 00:00:56] [%clk 00:00:34]} 28. a4 {[%emt 00:00:01] [%clk
00:01:20]} bxa4 {[%emt 00:00:02] [%clk 00:00:34]} 29. c4 {[%clk 00:01:22]} Rh5
{[%emt 00:00:11] [%clk 00:00:25]} 30. Be4+ {[%emt 00:00:02] [%clk 00:01:22]}
Kxg5 {[%emt 00:00:01] [%clk 00:00:25]} 31. Rxb8 {[%emt 00:00:01] [%clk
00:01:23]} Kf4 {[%clk 00:00:26]} 32. Bb1 {[%emt 00:00:21] [%clk 00:01:04]} a3
{[%emt 00:00:10] [%clk 00:00:19]} 33. c5 {[%emt 00:00:27] [%clk 00:00:38]} Rh6
{[%emt 00:00:06] [%clk 00:00:15]} 34. d5 {[%emt 00:00:11] [%clk 00:00:30]} Ke5
{[%clk 00:00:16]} 35. d6 {[%emt 00:00:04] [%clk 00:00:28]} Nf6 {[%clk 00:00:17]}
36. Ba2 {[%emt 00:00:13] [%clk 00:00:17]} Nd7 {[%emt 00:00:05] [%clk 00:00:15]}
37. Re8+ {[%emt 00:00:02] [%clk 00:00:16]} Kd4 {[%clk 00:00:16]} 38. c6 {[%emt
00:00:02] [%clk 00:00:16]} Rxd6 {[%clk 00:00:17]} 39. cxd7 {[%emt 00:00:03]
[%clk 00:00:16]} Rxd7 {[%clk 00:00:19]} 40. Re3 {[%emt 00:00:03] [%clk
00:00:15]} Rd6 {[%emt 00:00:06] [%clk 00:00:15]} 41. Rxa3 {[%emt 00:00:01] [%clk
00:00:15]} Kc5 {[%clk 00:00:17]} 42. Kg2 {[%emt 00:00:04] [%clk 00:00:13]} Kb4
{[%emt 00:00:02] [%clk 00:00:18]} 43. Rb3+ {[%emt 00:00:01] [%clk 00:00:14]} Kc5
{[%emt 00:00:01] [%clk 00:00:18]} 44. Rb7 {[%clk 00:00:15]} g5 {[%emt 00:00:01]
[%clk 00:00:19]} 45. Rg7 {[%emt 00:00:03] [%clk 00:00:15]} Rd2 {[%emt 00:00:01]
[%clk 00:00:20]} 46. Rxg5+ {[%emt 00:00:01] [%clk 00:00:15]} Kb4 {[%clk
00:00:21]} 47. Be6 {[%emt 00:00:03] [%clk 00:00:14]} a5 {[%emt 00:00:01] [%clk
00:00:22]} 48. Rg4+ {[%emt 00:00:02] [%clk 00:00:13]} Kc5 {[%clk 00:00:24]} 49.
Kg3 {[%emt 00:00:03] [%clk 00:00:12]} Re2 {[%emt 00:00:03] [%clk 00:00:24]} 50.
Bg8 {[%emt 00:00:03] [%clk 00:00:10]} Re8 {[%emt 00:00:04] [%clk 00:00:22]} 51.
Bf7 {[%emt 00:00:05] [%clk 00:00:08]} Re7 {[%emt 00:00:01] [%clk 00:00:23]} 52.
Bb3 {[%emt 00:00:01] [%clk 00:00:08]} Re2 {[%emt 00:00:02] [%clk 00:00:23]} 53.
Ba4 {[%emt 00:00:01] [%clk 00:00:09]} Ra2 {[%emt 00:00:04] [%clk 00:00:22]} 54.
Re4 {[%emt 00:00:01] [%clk 00:00:10]} Ra3+ {[%emt 00:00:03] [%clk 00:00:21]} 55.
f3 {[%emt 00:00:01] [%clk 00:00:11]} Ra1 {[%emt 00:00:01] [%clk 00:00:21]} 56.
Kf4 {[%emt 00:00:02] [%clk 00:00:11]} Kd5 {[%emt 00:00:01] [%clk 00:00:22]} 57.
Kf5 {[%emt 00:00:02] [%clk 00:00:11]} Rh1 {[%emt 00:00:03] [%clk 00:00:21]} 58.
Bb3+ {[%emt 00:00:03] [%clk 00:00:11]} Kd6 {[%emt 00:00:01] [%clk 00:00:22]} 59.
Ra4 {[%emt 00:00:02] [%clk 00:00:11]} Rh3 {[%emt 00:00:02] [%clk 00:00:21]} 60.
Ke4 {[%emt 00:00:02] [%clk 00:00:12]} Rh5 {[%emt 00:00:02] [%clk 00:00:20]} 61.
f4 {[%emt 00:00:02] [%clk 00:00:11]} Rb5 {[%clk 00:00:22]} 62. Bc4 {[%emt
00:00:01] [%clk 00:00:13]} Rc5 {[%clk 00:00:23]} 63. f5 {[%emt 00:00:04] [%clk
00:00:10]} Ke7 {[%emt 00:00:01] [%clk 00:00:24]} 64. Bd5 {[%clk 00:00:11]} Kf6
{[%emt 00:00:01] [%clk 00:00:25]} 65. Be6 {[%emt 00:00:02] [%clk 00:00:11]} Rb5
{[%emt 00:00:01] [%clk 00:00:26]} 66. Ra1 {[%emt 00:00:03] [%clk 00:00:10]} Rb4+
{[%clk 00:00:28]} 67. Kd5 {[%clk 00:00:11]} a4 {[%emt 00:00:02] [%clk 00:00:27]}
68. Bd7 {[%emt 00:00:05] [%clk 00:00:08]} Rf4 {[%emt 00:00:08] [%clk 00:00:21]}
69. Ra3 {[%emt 00:00:04] [%clk 00:00:07]} Ke7 {[%emt 00:00:03] [%clk 00:00:19]}

[Site "Europe Echecs"]

[Event "Championnat d'Europe de Blitz"]
[Date "2024.12.09"]
[White "Kilic, Eray"]
[Black "Navara, David"]
[WhiteElo "2459"]
[BlackElo "2665"]
[Round "12.16"]
[Result "1-0"]
[TimeControl "180+2"]

1. d4 {[%emt 00:00:01] [%clk 00:03:03]} Nf6 {[%clk 00:03:03]} 2. Nc3 {[%clk
00:03:04]} d5 {[%clk 00:03:04]} 3. Bf4 {[%emt 00:00:01] [%clk 00:03:05]} c5
{[%emt 00:00:02] [%clk 00:03:04]} 4. e3 {[%emt 00:00:02] [%clk 00:03:05]} Bg4
{[%emt 00:00:11] [%clk 00:02:55]} 5. Nf3 {[%emt 00:00:19] [%clk 00:02:48]} Nc6
{[%emt 00:00:07] [%clk 00:02:50]} 6. Bb5 {[%emt 00:00:07] [%clk 00:02:43]} e6
{[%emt 00:00:24] [%clk 00:02:29]} 7. h3 {[%emt 00:00:01] [%clk 00:02:43]} Bxf3
{[%emt 00:00:02] [%clk 00:02:28]} 8. Qxf3 {[%emt 00:00:02] [%clk 00:02:43]} Rc8
{[%emt 00:00:15] [%clk 00:02:16]} 9. O-O {[%emt 00:00:10] [%clk 00:02:34]} cxd4
{[%emt 00:00:07] [%clk 00:02:11]} 10. exd4 {[%emt 00:00:02] [%clk 00:02:35]} a6
{[%emt 00:00:01] [%clk 00:02:13]} 11. Bxc6+ {[%emt 00:00:23] [%clk 00:02:14]}
Rxc6 {[%emt 00:00:01] [%clk 00:02:13]} 12. Qd3 {[%emt 00:00:09] [%clk 00:02:07]}
Qb6 {[%emt 00:00:09] [%clk 00:02:06]} 13. Rab1 {[%emt 00:00:06] [%clk 00:02:03]}
Be7 {[%emt 00:00:08] [%clk 00:02:00]} 14. Be5 {[%emt 00:00:14] [%clk 00:01:51]}
O-O {[%emt 00:00:05] [%clk 00:01:57]} 15. Rfe1 {[%emt 00:00:08] [%clk 00:01:44]}
Nd7 {[%emt 00:00:10] [%clk 00:01:50]} 16. Bf4 {[%emt 00:00:02] [%clk 00:01:43]}
Bb4 {[%emt 00:00:04] [%clk 00:01:49]} 17. Red1 {[%emt 00:00:25] [%clk 00:01:20]}
Bxc3 {[%emt 00:00:25] [%clk 00:01:26]} 18. bxc3 {[%emt 00:00:01] [%clk
00:01:21]} Qa7 {[%emt 00:00:01] [%clk 00:01:27]} 19. Qg3 {[%emt 00:00:04] [%clk
00:01:18]} Rfc8 {[%emt 00:00:09] [%clk 00:01:21]} 20. Bh6 {[%emt 00:00:06] [%clk
00:01:14]} g6 {[%emt 00:00:02] [%clk 00:01:21]} 21. Rd3 {[%emt 00:00:01] [%clk
00:01:15]} b5 {[%emt 00:00:10] [%clk 00:01:14]} 22. Re1 {[%emt 00:00:10] [%clk
00:01:05]} Qc7 {[%emt 00:00:06] [%clk 00:01:10]} 23. Bf4 {[%emt 00:00:06] [%clk
00:01:02]} Qa5 {[%emt 00:00:02] [%clk 00:01:10]} 24. Ree3 {[%emt 00:00:04] [%clk
00:01:00]} Qxa2 {[%emt 00:00:12] [%clk 00:01:00]} 25. Qg5 {[%emt 00:00:03] [%clk
00:00:58]} b4 {[%emt 00:00:29] [%clk 00:00:35]} 26. Qe7 {[%emt 00:00:12] [%clk
00:00:47]} Nf8 {[%emt 00:00:29] [%clk 00:00:08]} 27. Be5 {[%emt 00:00:11] [%clk
00:00:39]} Nd7 {[%emt 00:00:05] [%clk 00:00:04]} 28. Qxd7 {[%emt 00:00:05] [%clk
00:00:36]} Rxc3 {[%emt 00:00:02] [%clk 00:00:04]} 29. Rxc3 {[%emt 00:00:03]
[%clk 00:00:36]} 1-0

[Site "Europe Echecs"]

[Event "Championnat d'Europe de Blitz"]
[Date "2024.12.09"]
[White "Pultinevicius, Paulius"]
[Black "Georgiev, Kiril"]
[WhiteElo "2579"]
[BlackElo "2537"]
[Round "12.17"]
[Result "1-0"]
[TimeControl "180+2"]

1. c4 {[%emt 00:00:03] [%clk 00:03:02]} Nf6 {[%emt 00:00:04] [%clk 00:03:00]} 2.
Nc3 {[%emt 00:00:03] [%clk 00:03:01]} e5 {[%emt 00:00:08] [%clk 00:02:52]} 3. e3
{[%emt 00:00:02] [%clk 00:03:02]} c6 {[%emt 00:00:12] [%clk 00:02:43]} 4. Nf3
{[%emt 00:00:10] [%clk 00:02:54]} e4 {[%emt 00:00:05] [%clk 00:02:40]} 5. Nd4
{[%emt 00:00:03] [%clk 00:02:53]} Bc5 {[%emt 00:00:03] [%clk 00:02:39]} 6. d3
{[%emt 00:00:02] [%clk 00:02:53]} d5 {[%emt 00:00:20] [%clk 00:02:20]} 7. Nb3
{[%emt 00:00:59] [%clk 00:01:57]} Bb4 {[%emt 00:00:11] [%clk 00:02:10]} 8. Bd2
{[%emt 00:00:03] [%clk 00:01:56]} dxc4 {[%emt 00:00:23] [%clk 00:01:50]} 9. dxc4
{[%emt 00:00:02] [%clk 00:01:56]} Qe7 {[%emt 00:00:01] [%clk 00:01:50]} 10. Qc2
{[%emt 00:00:29] [%clk 00:01:30]} O-O {[%emt 00:00:05] [%clk 00:01:47]} 11. Be2
{[%emt 00:00:03] [%clk 00:01:29]} Re8 {[%emt 00:00:07] [%clk 00:01:41]} 12. h3
{[%emt 00:00:09] [%clk 00:01:23]} Nbd7 {[%emt 00:00:09] [%clk 00:01:33]} 13. a3
{[%emt 00:00:08] [%clk 00:01:18]} Bd6 {[%emt 00:00:01] [%clk 00:01:34]} 14. Nd4
{[%emt 00:00:03] [%clk 00:01:18]} Qe5 {[%emt 00:00:07] [%clk 00:01:28]} 15.
O-O-O {[%emt 00:00:39] [%clk 00:00:41]} Nc5 {[%emt 00:00:02] [%clk 00:01:27]}
16. f4 {[%emt 00:00:05] [%clk 00:00:39]} Qe7 {[%emt 00:00:25] [%clk 00:01:03]}
17. g4 {[%emt 00:00:02] [%clk 00:00:40]} Nd3+ {[%emt 00:00:08] [%clk 00:00:57]}
18. Bxd3 {[%emt 00:00:05] [%clk 00:00:37]} exd3 {[%emt 00:00:01] [%clk
00:00:57]} 19. Qxd3 {[%emt 00:00:02] [%clk 00:00:38]} Bc7 {[%emt 00:00:02] [%clk
00:00:57]} 20. e4 {[%emt 00:00:10] [%clk 00:00:31]} Nxe4 {[%emt 00:00:11] [%clk
00:00:48]} 21. Nxe4 {[%emt 00:00:01] [%clk 00:00:31]} b5 {[%emt 00:00:22] [%clk
00:00:28]} 22. Rhe1 {[%emt 00:00:04] [%clk 00:00:29]} Qf8 {[%emt 00:00:04] [%clk
00:00:26]} 23. c5 {[%emt 00:00:04] [%clk 00:00:27]} Rd8 {[%emt 00:00:05] [%clk
00:00:23]} 24. f5 {[%emt 00:00:13] [%clk 00:00:16]} a5 {[%emt 00:00:07] [%clk
00:00:18]} 25. Bg5 {[%emt 00:00:05] [%clk 00:00:13]} Rd5 {[%emt 00:00:06] [%clk
00:00:14]} 26. Qf3 {[%emt 00:00:04] [%clk 00:00:10]} Bb7 {[%emt 00:00:07] [%clk
00:00:10]} 27. Bf4 {[%emt 00:00:01] [%clk 00:00:10]} Bxf4+ {[%emt 00:00:04]
[%clk 00:00:09]} 28. Qxf4 {[%clk 00:00:11]} b4 {[%emt 00:00:03]} 29. a4 {[%clk
00:00:11]} Rad8 {[%emt 00:00:02] [%clk 00:00:09]} 30. Nb3 {[%emt 00:00:01] [%clk
00:00:12]} Ba6 {[%emt 00:00:03] [%clk 00:00:09]} 31. Nd6 {[%emt 00:00:01] [%clk
00:00:12]} h6 {[%emt 00:00:05] [%clk 00:00:06]} 32. Rxd5 {[%emt 00:00:02] [%clk
00:00:12]} cxd5 {[%clk 00:00:08]} 33. Nxa5 {[%emt 00:00:02] [%clk 00:00:12]} b3
{[%emt 00:00:02] [%clk 00:00:08]} 34. Nc6 {[%emt 00:00:01] [%clk 00:00:13]} Ra8
{[%emt 00:00:01] [%clk 00:00:09]} 35. Ne7+ {[%emt 00:00:04] [%clk 00:00:11]} Kh8
{[%emt 00:00:01] [%clk 00:00:10]} 36. f6 {[%emt 00:00:03] [%clk 00:00:10]} g5
{[%emt 00:00:04] [%clk 00:00:08]} 37. Qd4 {[%emt 00:00:02] [%clk 00:00:10]} Bc4
{[%emt 00:00:02] [%clk 00:00:08]} 38. c6 {[%emt 00:00:06] [%clk 00:00:06]} Rxa4
{[%emt 00:00:02] [%clk 00:00:08]} 39. c7 {[%emt 00:00:01] [%clk 00:00:07]} Ra8
{[%emt 00:00:02] [%clk 00:00:08]} 40. c8=Q {[%emt 00:00:03] [%clk 00:00:05]}
Rxc8 {[%emt 00:00:01] [%clk 00:00:09]} 41. Nexc8 {[%emt 00:00:03] [%clk
00:00:05]} 1-0

[Site "Europe Echecs"]